bitfinex/quotes_BTCUSD_20240719
["timestamp","ask_amount","ask_price","bid_price","bid_amount"]
[1721410536320,0.02895351,66570.0,66563.0,0.138994]
[1721410536468,0.04869094,66569.0,66565.0,0.066]
[1721410536666,0.01581012,66568.0,66567.0,0.343523]
[1721410536893,0.02480055,66569.0,66568.0,0.978966]
[1721410537092,0.01580034,66569.0,66568.0,1.280204]
[1721410537293,0.00084,66582.0,66575.0,0.0776]
[1721410537452,0.01561297,66581.0,66578.0,0.1422]
[1721410537856,0.01561297,66581.0,66579.0,0.000794]
[1721410539345,0.01561297,66581.0,66579.0,0.002794]
[1721410539569,0.01557551,66580.0,66579.0,0.002794]
[1721410539714,0.01557551,66581.0,66579.0,0.000794]
[1721410539926,0.01557551,66581.0,66579.0,0.07796879]
[1721410540763,0.01557551,66581.0,66579.0,0.000794]
[1721410541009,0.01557551,66581.0,66573.0,0.0628]
[1721410541138,0.03269388,66580.0,66574.0,0.000794]
[1721410541338,0.04826939,66579.0,66574.0,0.000794]
[1721410541576,0.01557551,66578.0,66574.0,0.000794]
[1721410541820,0.00084,66582.0,66574.0,0.000794]
[1721410541821,0.01557551,66577.0,66574.0,0.000794]
[1721410541995,0.01557551,66576.0,66574.0,0.000794]
[1721410542203,0.01557551,66575.0,66572.0,0.000794]
[1721410542407,0.004,66581.0,66572.0,0.000794]
[1721410542408,0.01557551,66574.0,66572.0,0.000794]
[1721410542692,0.0156407,66573.0,66572.0,0.000794]
[1721410542899,0.002,66579.0,66572.0,0.000794]
[1721410543075,0.002,66579.0,66578.0,0.07717479]
[1721410543307,0.01564034,66580.0,66578.0,0.07717479]
[1721410543556,0.04835824,66579.0,66571.0,0.07717479]
[1721410543772,0.00084,66582.0,66572.0,0.000794]
[1721410543773,0.04835824,66578.0,66572.0,0.000794]
[1721410543980,0.04835824,66577.0,66572.0,0.000794]
[1721410544236,0.014834,66582.0,66572.0,0.000794]
[1721410544237,0.01564034,66576.0,66572.0,0.000794]
[1721410544437,0.014834,66582.0,66572.0,0.000794]
[1721410544438,0.01564034,66575.0,66572.0,0.000794]
[1721410544643,0.01564034,66574.0,66572.0,0.002]
[1721410544858,0.01564034,66573.0,66572.0,0.002]
[1721410545299,0.01564034,66573.0,66565.0,0.000794]
[1721410545503,0.29778174,66573.0,66572.0,0.002]
[1721410545921,0.37852198,66573.0,66559.0,0.0638]
[1721410546126,0.23712198,66572.0,66556.0,0.5586]
[1721410546337,0.23712198,66572.0,66556.0,0.4753]
[1721410546338,0.08074024,66571.0,66556.0,0.4753]
[1721410546548,0.30327418,66570.0,66556.0,0.4753]
[1721410546782,0.08074024,66569.0,66556.0,0.4753]
[1721410546986,0.22253394,66570.0,66556.0,0.4753]
[1721410546987,0.23712198,66568.0,66556.0,0.4753]
[1721410547193,0.08074024,66567.0,66556.0,0.4753]
[1721410547366,0.23712198,66566.0,66556.0,0.4753]
[1721410547604,0.08074024,66565.0,66556.0,0.4753]
[1721410547861,0.08274024,66564.0,66556.0,0.4753]
[1721410548070,0.08074024,66563.0,66556.0,0.4753]
[1721410548289,0.08074024,66562.0,66556.0,0.4753]
[1721410548463,0.04787503,66561.0,66556.0,0.4753]
[1721410548680,0.04787503,66560.0,66556.0,0.4753]
[1721410548910,0.04764908,66559.0,66556.0,0.4753]
[1721410549167,0.04764908,66559.0,66549.0,0.0651]
[1721410549168,0.04764906,66558.0,66549.0,0.0651]
[1721410549422,0.08051937,66557.0,66546.0,0.15437479]
[1721410549636,0.08051937,66556.0,66546.0,0.07717479]
[1721410549849,0.08051937,66555.0,66546.0,0.07717479]
[1721410550097,0.26445122,66554.0,66545.0,0.4753]
[1721410550325,0.26445122,66554.0,66541.0,0.07717479]
[1721410550326,0.08051937,66553.0,66541.0,0.07717479]
[1721410550562,0.08051937,66552.0,66541.0,0.07717479]
[1721410550789,0.15438174,66553.0,66541.0,0.07717479]
[1721410550790,0.08051937,66551.0,66541.0,0.07717479]
[1721410551079,0.08051937,66550.0,66537.0,0.072985]
[1721410551274,0.08051937,66550.0,66537.0,0.009185]
[1721410551275,0.0646,66548.0,66537.0,0.009185]
[1721410551475,0.31241305,66547.0,66537.0,0.009185]
[1721410551606,0.10351937,66546.0,66537.0,0.009185]
[1721410551806,0.17789227,66545.0,66537.0,0.009185]
[1721410552012,0.10373444,66544.0,66537.0,0.009185]
[1721410552216,0.23511618,66543.0,66537.0,0.009185]
[1721410552438,0.08073583,66542.0,66537.0,0.009185]
[1721410552797,0.08073583,66541.0,66537.0,0.009185]
[1721410553002,0.08073583,66540.0,66537.0,0.009185]
[1721410553210,0.15438174,66542.0,66537.0,0.009185]
[1721410553211,0.08073583,66539.0,66537.0,0.009185]
[1721410553414,0.04786117,66538.0,66537.0,0.009185]
[1721410554413,0.01537852,66538.0,66537.0,0.009185]
[1721410554854,0.01537852,66538.0,66537.0,0.007185]
[1721410555058,0.02937852,66538.0,66537.0,0.086985]
[1721410555458,0.02937852,66538.0,66537.0,0.007185]
[1721410556233,0.04137852,66538.0,66537.0,0.007185]
[1721410556459,0.04137852,66538.0,66537.0,0.54067206]
[1721410556793,0.014,66538.0,66537.0,0.53766674]
[1721410556995,0.002,66549.0,66537.0,0.53766674]
[1721410557198,0.01,66538.0,66537.0,0.149185]
[1721410557394,0.022,66538.0,66537.0,0.385285]
[1721410557597,0.022,66538.0,66537.0,0.362285]
[1721410557736,0.01,66538.0,66537.0,0.362285]
[1721410557937,0.01,66538.0,66537.0,0.0654]
[1721410558140,0.011,66538.0,66532.0,0.0609]
[1721410558343,0.011,66538.0,66533.0,0.000794]
[1721410558542,0.002,66538.0,66533.0,0.000794]
[1721410558959,0.0641,66549.0,66537.0,0.001]
[1721410559303,0.01739982,66548.0,66542.0,0.07717479]
[1721410559443,0.01539982,66547.0,66542.0,0.07717479]
[1721410559642,0.002,66546.0,66542.0,0.07717479]
[1721410559844,0.01539982,66545.0,66542.0,0.07717479]
[1721410560040,0.01539982,66545.0,66533.0,0.002]
[1721410560266,0.01739982,66544.0,66538.0,0.07717479]
[1721410560495,0.01539982,66543.0,66539.0,0.08480554]
[1721410560725,0.005,66548.0,66542.0,0.2361]
[1721410560927,0.005,66548.0,66547.0,0.07717479]
[1721410562263,0.01748568,66563.0,66547.0,0.07717479]
[1721410562507,0.20244554,66562.0,66554.0,0.07717479]
[1721410562706,0.01748568,66561.0,66554.0,0.07717479]
[1721410562911,0.01548568,66560.0,66554.0,0.07717479]
[1721410563133,0.002,66559.0,66554.0,0.07717479]
[1721410563341,0.01548568,66558.0,66554.0,0.07717479]
[1721410563492,0.15438174,66562.0,66554.0,0.07717479]
[1721410563709,0.00834089,66563.0,66554.0,0.07717479]
[1721410563710,0.01751553,66561.0,66554.0,0.07717479]
[1721410563910,0.00834089,66563.0,66554.0,0.07717479]
[1721410563911,0.01551553,66560.0,66554.0,0.07717479]
[1721410564184,0.01551437,66559.0,66554.0,0.07717479]
[1721410564398,0.1,66562.0,66554.0,0.07717479]
[1721410564399,0.01751437,66558.0,66554.0,0.07717479]
[1721410564581,0.01551437,66557.0,66554.0,0.07717479]
[1721410564814,0.01551437,66556.0,66555.0,0.06830493]
[1721410565017,0.014,66561.0,66555.0,0.066094]
[1721410565426,0.014,66560.0,66559.0,0.2361]
[1721410565637,0.014,66560.0,66559.0,0.834327]
[1721410565873,0.014,66560.0,66559.0,0.3836]
[1721410566082,0.014,66561.0,66559.0,0.3836]
[1721410566258,0.019,66561.0,66560.0,0.000794]
[1721410566906,0.00888121,66573.0,66560.0,0.000794]
[1721410567118,0.00888121,66573.0,66565.0,0.07717479]
[1721410567119,0.01557998,66572.0,66565.0,0.07717479]
[1721410567304,0.01557998,66572.0,66566.0,0.000794]
[1721410568673,0.29918174,66571.0,66566.0,0.000794]
[1721410568880,0.29918174,66571.0,66559.0,0.001]
[1721410568881,0.05,66567.0,66559.0,0.001]
[1721410569109,0.05,66562.0,66559.0,0.001]
[1721410569281,0.27217479,66560.0,66559.0,0.001]
[1721410569483,0.05,66555.0,66547.0,0.4753]
[1721410569834,0.64824853,66560.0,66535.0,0.4753]
[1721410569835,0.3565816,66554.0,66535.0,0.4753]
[1721410570031,0.05999386,66553.0,66534.0,0.0647]
[1721410570168,0.27901954,66552.0,66533.0,0.07717479]
[1721410570365,0.0736318,66551.0,66533.0,0.07717479]
[1721410570592,0.20221954,66550.0,66533.0,0.07717479]
[1721410570803,0.0478378,66549.0,66533.0,0.07717479]
[1721410571005,0.15438174,66548.0,66533.0,0.07717479]
[1721410571272,0.0478378,66547.0,66529.0,0.484485]
[1721410571474,0.22068174,66546.0,66531.0,0.07717479]
[1721410571624,0.01536857,66545.0,66531.0,0.07717479]
[1721410571824,0.15438174,66544.0,66531.0,0.07717479]
[1721410572126,0.15438174,66544.0,66529.0,0.484485]
[1721410572127,0.0814,66542.0,66529.0,0.484485]
[1721410572303,0.01536857,66541.0,66529.0,0.484485]
[1721410572938,0.15438174,66540.0,66529.0,0.484485]
[1721410573107,0.0476964,66539.0,66529.0,0.484485]
[1721410573307,0.15438174,66538.0,66529.0,0.56165979]
[1721410573517,0.0476964,66537.0,66529.0,0.08635979]
[1721410573752,0.20207814,66537.0,66529.0,0.08635979]
[1721410573957,0.01529403,66536.0,66529.0,0.08635979]
[1721410574505,0.01696758,66535.0,66529.0,0.08635979]
[1721410574708,0.01529403,66534.0,66529.0,0.08635979]
[1721410575065,0.01529403,66534.0,66529.0,0.009185]
[1721410575262,0.01529403,66533.0,66529.0,0.009185]
[1721410575463,0.07639403,66533.0,66529.0,0.009185]
[1721410575624,0.01529403,66532.0,66529.0,0.009185]
[1721410576062,0.01519593,66531.0,66529.0,0.009185]
[1721410576272,0.0382637,66530.0,66529.0,0.009185]
[1721410576677,0.01519593,66530.0,66529.0,0.009185]
[1721410577100,0.01519593,66532.0,66529.0,0.009185]
[1721410577695,0.01519593,66532.0,66530.0,0.07717479]
[1721410577888,0.01519593,66532.0,66530.0,0.08440817]
[1721410578318,0.004,66536.0,66530.0,0.00723338]
[1721410578319,0.01519593,66531.0,66530.0,0.00723338]
[1721410578492,0.01519593,66535.0,66530.0,0.00723338]
[1721410578753,0.20949922,66534.0,66530.0,0.00723338]
[1721410579046,0.006,66532.0,66529.0,0.009185]
[1721410579257,0.01519593,66531.0,66530.0,0.07717479]
[1721410579665,0.011,66532.0,66530.0,0.07717479]
[1721410579935,0.01504031,66531.0,66530.0,0.07717479]
[1721410580208,0.01504031,66531.0,66529.0,0.009185]
[1721410580209,0.01498716,66531.0,66529.0,0.009185]
[1721410580890,0.01498716,66530.0,66529.0,0.009185]
[1721410582087,0.04700451,66530.0,66529.0,0.009185]
[1721410582316,0.03501735,66530.0,66529.0,0.009185]
[1721410582543,0.003,66530.0,66529.0,0.00911039]
[1721410582781,0.05000451,66530.0,66529.0,0.00911039]
[1721410583476,0.28458625,66530.0,66529.0,0.00911039]
[1721410583709,0.3081091,66530.0,66529.0,0.00911039]
[1721410584433,0.28758625,66530.0,66529.0,0.00911039]
[1721410585352,0.05300451,66530.0,66529.0,0.00911039]
[1721410585577,0.05358686,66530.0,66529.0,0.00911039]
[1721410585811,0.02123755,66530.0,66529.0,0.15701039]
[1721410586695,0.003,66530.0,66529.0,0.15701039]
[1721410586936,0.015231,66530.0,66529.0,0.15701039]
[1721410587207,0.021231,66530.0,66529.0,0.46170213]
[1721410587406,0.003,66530.0,66529.0,0.76232213]
[1721410587601,0.003,66530.0,66529.0,0.46170213]
[1721410587801,0.00816115,66541.0,66529.0,0.46170213]
[1721410588029,0.00816115,66541.0,66535.0,0.07717479]
[1721410588233,0.16958521,66554.0,66535.0,0.07717479]
[1721410588506,0.002794,66553.0,66544.0,0.0646]
[1721410588710,0.16526721,66555.0,66543.0,0.07717479]
[1721410588884,0.102794,66554.0,66543.0,0.07717479]
[1721410589291,0.0767,66552.0,66532.0,0.5367]
[1721410589497,0.22841825,66551.0,66532.0,0.5367]
[1721410589691,0.05364596,66550.0,66532.0,0.5367]
[1721410589873,0.15438174,66549.0,66532.0,0.5367]
[1721410590702,0.04774813,66548.0,66532.0,0.5367]
[1721410590984,0.15438174,66547.0,66532.0,0.5367]
[1721410591157,0.01532205,66546.0,66544.0,0.07717479]
[1721410591416,0.01532205,66545.0,66544.0,0.15277479]
[1721410591874,0.01532205,66551.0,66545.0,0.0627]
[1721410592101,0.01539181,66550.0,66545.0,0.06570517]
[1721410592368,0.01539181,66549.0,66545.0,0.06555776]
[1721410592635,0.00260066,66555.0,66545.0,0.06555776]
[1721410592636,0.01538992,66553.0,66545.0,0.06255258]
[1721410592885,0.014,66548.0,66546.0,0.00300518]
[1721410593064,0.014,66548.0,66547.0,0.291708]
[1721410593277,0.014,66548.0,66547.0,0.29471264]
[1721410593497,0.014,66548.0,66547.0,0.567577]
[1721410593703,0.014,66548.0,66547.0,1.34465962]
[1721410593850,0.014,66548.0,66547.0,1.592194]
[1721410594206,0.00084,66557.0,66553.0,0.150255]
[1721410594343,0.00084,66557.0,66552.0,0.300513]
[1721410594547,0.002794,66581.0,66572.0,0.751065]
[1721410594751,0.00084,66582.0,66572.0,1.80007274]
[1721410594949,0.00084,66582.0,66581.0,1.101347]
[1721410595158,0.00084,66582.0,66581.0,1.79992874]
[1721410595381,0.00084,66582.0,66581.0,1.56104374]
[1721410596238,0.00084,66582.0,66581.0,1.48804374]
[1721410596476,0.00084,66582.0,66581.0,0.39148174]
[1721410596705,0.00084,66582.0,66581.0,1.53804374]
[1721410597135,0.00084,66582.0,66581.0,1.48804374]
[1721410597334,0.00184,66582.0,66581.0,1.48804374]
[1721410597537,0.00184,66582.0,66581.0,1.13765874]
[1721410597752,0.00084,66582.0,66581.0,0.39148174]
[1721410598128,0.00184,66582.0,66581.0,0.54167374]
[1721410598477,0.00184,66582.0,66581.0,0.89305874]
[1721410598478,0.00284,66582.0,66581.0,0.89305874]
[1721410598590,0.00284,66582.0,66581.0,1.13865874]
[1721410598814,0.00184,66582.0,66581.0,1.48804374]
[1721410599265,0.00284,66582.0,66581.0,0.83827374]
[1721410599482,0.00284,66582.0,66581.0,0.39248174]
[1721410599698,0.001,66582.0,66581.0,0.39248174]
[1721410599914,0.001,66582.0,66581.0,0.001]
[1721410600407,0.002794,66594.0,66581.0,0.001]
[1721410600643,0.048303,66595.0,66582.0,0.07717479]
[1721410601307,0.05639558,66595.0,66582.0,0.07717479]
[1721410601532,0.05639558,66595.0,66589.0,0.07717479]
[1721410602401,0.05739558,66595.0,66589.0,0.07717479]
[1721410603880,0.048303,66595.0,66590.0,0.00300323]
[1721410604076,0.048303,66595.0,66589.0,0.07717479]
[1721410604360,0.048303,66595.0,66591.0,0.1435]
[1721410604361,0.049303,66595.0,66591.0,0.1435]
[1721410605008,0.049303,66595.0,66589.0,0.07717479]
[1721410605009,0.048303,66595.0,66589.0,0.07717479]
[1721410605245,0.049303,66595.0,66589.0,0.07717479]
[1721410605452,0.049303,66595.0,66589.0,0.23155653]
[1721410605849,0.048303,66595.0,66589.0,0.23155653]
[1721410606781,0.049303,66595.0,66589.0,0.23155653]
[1721410606984,0.049303,66595.0,66591.0,0.002]
[1721410607798,0.049303,66595.0,66589.0,0.23155653]
[1721410608204,0.045303,66595.0,66589.0,0.23355653]
[1721410608913,0.045303,66595.0,66589.0,0.07917479]
[1721410609138,0.044303,66595.0,66589.0,0.07917479]
[1721410609367,0.045303,66595.0,66589.0,0.07917479]
[1721410610462,0.046303,66595.0,66589.0,0.07917479]
[1721410614299,0.1467,66594.0,66589.0,0.07917479]
[1721410614474,0.002794,66593.0,66589.0,0.07917479]
[1721410614680,0.1467,66594.0,66589.0,0.002]
[1721410614885,0.46304871,66592.0,66575.0,0.4753]
[1721410615105,0.20779235,66593.0,66575.0,0.4753]
[1721410615106,0.31521358,66591.0,66575.0,0.4753]
[1721410615307,0.01504265,66590.0,66576.0,0.07717479]
[1721410615579,0.15717574,66589.0,66576.0,0.07717479]
[1721410615769,0.11504265,66588.0,66583.0,0.07717479]
[1721410615974,0.01783665,66587.0,66583.0,0.07717479]
[1721410616169,0.01783665,66587.0,66576.0,0.07717479]
[1721410616170,0.16942439,66586.0,66576.0,0.07717479]
[1721410616373,0.15653665,66585.0,66576.0,0.07717479]
[1721410616594,0.16942439,66584.0,66576.0,0.07717479]
[1721410616782,0.01783665,66583.0,66576.0,0.07717479]
[1721410616982,0.16942439,66582.0,66576.0,0.07717479]
[1721410617185,0.01783665,66581.0,66576.0,0.07717479]
[1721410617388,0.16942439,66580.0,66576.0,0.07717479]
[1721410617590,0.01783665,66579.0,66576.0,0.07717479]
[1721410617742,0.01783665,66579.0,66565.0,0.55247479]
[1721410617743,0.01504265,66578.0,66565.0,0.55247479]
[1721410617956,0.0823,66576.0,66565.0,0.55247479]
[1721410618158,0.01783665,66575.0,66572.0,0.07717479]
[1721410618366,0.01513746,66574.0,66572.0,0.07717479]
[1721410618561,0.002794,66573.0,66572.0,0.07717479]
[1721410618752,0.01793146,66573.0,66572.0,0.07717479]
[1721410618946,0.01513741,66573.0,66572.0,0.07717479]
[1721410619162,0.0823,66576.0,66572.0,0.07717479]
[1721410619163,0.01793141,66575.0,66572.0,0.07717479]
[1721410619387,0.01513741,66574.0,66572.0,0.07717479]
[1721410619586,0.002794,66573.0,66565.0,0.55247479]
[1721410619808,0.01513741,66572.0,66565.0,0.55247479]
[1721410620008,0.063594,66571.0,66565.0,0.4753]
[1721410620244,0.01513741,66570.0,66565.0,0.4753]
[1721410620485,0.002794,66569.0,66565.0,0.4753]
[1721410620674,0.01513741,66568.0,66565.0,0.4753]
[1721410620822,0.01513741,66568.0,66566.0,0.07717479]
[1721410621010,0.01512753,66570.0,66566.0,0.07717479]
[1721410621261,0.01792153,66569.0,66568.0,0.00719467]
[1721410621475,0.01512753,66569.0,66568.0,0.00719467]
[1721410622582,0.01512753,66570.0,66568.0,0.00719467]
[1721410622809,0.02192153,66569.0,66568.0,0.00719467]
[1721410623080,0.01912753,66569.0,66568.0,0.00719467]
[1721410623527,0.01512753,66569.0,66568.0,0.00719467]
[1721410623731,0.01912753,66569.0,66566.0,0.06755444]
[1721410623934,0.004,66569.0,66568.0,0.08496906]
[1721410624338,0.01513067,66569.0,66568.0,0.08496906]
[1721410624789,0.004,66569.0,66568.0,0.08496906]
[1721410624924,0.01913067,66569.0,66568.0,0.08496906]
[1721410625324,0.01513067,66569.0,66568.0,0.08496906]
[1721410625540,0.15633067,66569.0,66568.0,0.00779427]
[1721410625731,0.15633067,66569.0,66559.0,1.2489]
[1721410626096,0.01792467,66568.0,66564.0,0.07717479]
[1721410626297,0.01513067,66567.0,66564.0,0.07717479]
[1721410627077,0.01513067,66566.0,66565.0,0.00780636]
[1721410627329,0.015146,66566.0,66565.0,0.00780636]
[1721410627539,0.022646,66566.0,66565.0,0.00780636]
[1721410628230,0.021646,66566.0,66565.0,0.00780636]
[1721410628867,0.024646,66566.0,66565.0,0.00780636]
[1721410629094,0.027646,66566.0,66565.0,0.00780636]
[1721410630474,0.0276532,66566.0,66565.0,0.00780636]
[1721410631723,0.0211532,66566.0,66565.0,0.00780636]
[1721410632137,0.0644,66588.0,66567.0,0.0652]
[1721410632340,0.46304871,66585.0,66581.0,0.07717479]
[1721410632537,0.01509965,66584.0,66581.0,0.07717479]
[1721410632711,0.3764,66591.0,66581.0,0.07717479]
[1721410632712,0.01509965,66583.0,66581.0,0.14077479]
[1721410632913,0.002794,66590.0,66581.0,0.14077479]
[1721410633133,0.01068464,66592.0,66589.0,0.07717479]
[1721410633134,0.00808639,66592.0,66589.0,0.07717479]
[1721410633339,0.01504572,66591.0,66589.0,0.07717479]
[1721410633651,0.16942746,66590.0,66581.0,0.07717479]
[1721410633811,0.005,66583.0,66581.0,0.07717479]
[1721410634016,0.01504864,66582.0,66581.0,0.07717479]
[1721410634413,0.01504864,66582.0,66581.0,0.08491643]
[1721410634830,0.005,66583.0,66581.0,0.08491643]
[1721410635056,0.006,66583.0,66582.0,0.1413]
[1721410635258,0.001,66583.0,66582.0,0.1413]
[1721410635510,0.001,66583.0,66582.0,0.14903765]
[1721410635841,0.001,66583.0,66582.0,0.30341939]
[1721410636065,0.00748,66583.0,66582.0,0.30341939]
[1721410636260,0.00648,66583.0,66582.0,0.30341939]
[1721410636471,0.00648,66583.0,66582.0,0.14903765]
[1721410638469,0.00748,66583.0,66582.0,0.15203765]
[1721410638674,0.00848,66583.0,66582.0,0.15803765]
[1721410638876,0.00848,66583.0,66582.0,0.31242266]
[1721410639053,0.00848,66583.0,66582.0,0.31542266]
[1721410639054,0.00948,66583.0,66582.0,0.31542266]
[1721410639464,0.00948,66583.0,66582.0,0.86299039]
[1721410639675,0.043303,66595.0,66594.0,0.45049]
[1721410639883,0.043303,66595.0,66594.0,0.58785653]
[1721410640088,0.043303,66595.0,66594.0,1.5225961]
[1721410640441,0.043303,66595.0,66594.0,1.57259348]
[1721410640654,0.043303,66595.0,66594.0,1.65199348]
[1721410640868,0.043303,66595.0,66594.0,2.08493142]
[1721410641398,0.00887,66605.0,66604.0,0.940805]
[1721410641613,0.00887,66605.0,66604.0,1.39078674]
[1721410642019,0.00887,66605.0,66604.0,1.44078674]
[1721410642295,0.00887,66605.0,66604.0,1.86573904]
[1721410642525,0.00887,66605.0,66604.0,1.39078674]
[1721410642725,0.00887,66605.0,66604.0,1.44078674]
[1721410643168,0.00887,66605.0,66604.0,1.39078674]
[1721410643348,0.00887,66605.0,66604.0,1.44078674]
[1721410643557,0.00887,66605.0,66604.0,1.47309492]
[1721410643763,0.00987,66605.0,66604.0,1.53365899]
[1721410643965,0.00987,66605.0,66604.0,1.48509492]
[1721410644166,0.00987,66605.0,66604.0,1.53365899]
[1721410644392,0.00987,66605.0,66604.0,1.48509492]
[1721410644600,0.01087,66605.0,66604.0,1.49709492]
[1721410645012,0.01087,66605.0,66604.0,1.44709492]
[1721410645214,0.01087,66605.0,66604.0,1.79737692]
[1721410645412,0.01087,66605.0,66604.0,1.44709492]
[1721410645619,0.01087,66605.0,66604.0,1.49709492]
[1721410645844,0.01087,66605.0,66604.0,1.42409492]
[1721410646682,0.01087,66605.0,66604.0,0.82353092]
[1721410646914,0.01087,66605.0,66604.0,0.62338992]
[1721410647112,0.01087,66605.0,66604.0,1.07381292]
[1721410647333,0.01087,66605.0,66604.0,1.72437692]
[1721410647538,0.01087,66605.0,66604.0,1.77437692]
[1721410647739,0.01087,66605.0,66604.0,1.72437692]
[1721410647942,0.01087,66605.0,66604.0,1.07381292]
[1721410648353,0.01087,66605.0,66604.0,0.77353092]
[1721410648783,0.01087,66605.0,66604.0,0.62338992]
[1721410649437,0.01087,66605.0,66604.0,0.24838992]
[1721410649615,0.01087,66605.0,66604.0,0.18768992]
[1721410650438,0.01087,66605.0,66604.0,0.17568992]
[1721410650644,0.00987,66605.0,66604.0,0.47128992]
[1721410650851,0.00987,66605.0,66604.0,0.46428992]
[1721410650852,0.00887,66605.0,66604.0,0.46428992]
[1721410651263,0.00887,66605.0,66604.0,0.46328992]
[1721410651466,0.00887,66605.0,66604.0,0.46828992]
[1721410651668,0.00887,66605.0,66604.0,0.46428992]
[1721410651877,0.00887,66605.0,66604.0,0.01430818]
[1721410652689,0.00887,66605.0,66604.0,0.01830818]
[1721410652898,0.00887,66605.0,66604.0,0.01330818]
[1721410653114,0.00887,66605.0,66604.0,0.01830818]
[1721410653541,0.00887,66605.0,66604.0,0.61643326]
[1721410653750,0.00887,66605.0,66604.0,0.62143326]
[1721410654162,0.00887,66605.0,66604.0,0.46729226]
[1721410654568,0.00887,66605.0,66604.0,0.47249766]
[1721410654979,0.00887,66605.0,66604.0,0.46729571]
[1721410655133,0.00887,66605.0,66604.0,0.61743671]
[1721410655346,0.00987,66605.0,66604.0,0.68803671]
[1721410655749,0.00987,66605.0,66604.0,1.76678271]
[1721410655961,0.00987,66605.0,66604.0,1.89978271]
[1721410655962,0.01087,66605.0,66604.0,1.89978271]
[1721410656154,0.001,66605.0,66604.0,1.89978271]
[1721410656730,0.00837,66615.0,66614.0,0.750592]
[1721410656948,0.00837,66615.0,66614.0,1.42194853]
[1721410657395,0.00837,66615.0,66614.0,1.42311498]
[1721410658201,0.00837,66615.0,66614.0,1.12287798]
[1721410658819,0.00837,66615.0,66614.0,0.67252298]
[1721410659020,0.00937,66615.0,66614.0,0.46214819]
[1721410660475,0.00937,66615.0,66614.0,0.47314819]
[1721410660897,0.00937,66615.0,66614.0,0.31876645]
[1721410661108,0.00937,66615.0,66614.0,0.022]
[1721410661329,0.00937,66615.0,66614.0,0.02316626]
[1721410661754,0.00937,66615.0,66614.0,0.022]
[1721410662841,0.0238332,66615.0,66614.0,0.022]
[1721410663666,0.1711332,66615.0,66614.0,0.022]
[1721410664302,0.1701332,66615.0,66614.0,0.011]
[1721410664522,0.1701332,66615.0,66614.0,0.004]
[1721410664821,0.1701332,66615.0,66614.0,0.009]
[1721410665191,0.1701332,66615.0,66614.0,0.005]
[1721410665394,0.00837,66615.0,66614.0,0.006]
[1721410665551,0.01437,66615.0,66614.0,0.006]
[1721410665939,0.01437,66615.0,66614.0,0.001]
[1721410666116,0.00837,66615.0,66611.0,0.08017678]
[1721410666251,0.01637,66615.0,66614.0,0.001]
[1721410666455,0.17361173,66615.0,66614.0,0.001]
[1721410666676,0.02281173,66615.0,66612.0,0.07717479]
[1721410666877,0.01444173,66614.0,66612.0,0.07717479]
[1721410667697,0.01444173,66614.0,66613.0,0.01363979]
[1721410668544,0.01435974,66614.0,66613.0,0.01363979]
[1721410669183,0.01935974,66614.0,66613.0,0.01363979]
[1721410669390,0.02435974,66614.0,66613.0,0.01363979]
[1721410669814,0.05082339,66614.0,66613.0,0.01363979]
[1721410670126,0.05582339,66614.0,66613.0,0.01363979]
[1721410670290,0.05082339,66614.0,66613.0,0.01363979]
[1721410670495,0.04582339,66614.0,66613.0,0.01363979]
[1721410670661,0.05082339,66614.0,66613.0,0.01363979]
[1721410670869,0.05582339,66614.0,66613.0,0.01363979]
[1721410671773,0.06092853,66614.0,66613.0,0.01363979]
[1721410672377,0.2053327,66614.0,66613.0,0.01363979]
[1721410672593,0.22882387,66614.0,66605.0,0.00018073]
[1721410672813,0.0722137,66613.0,66605.0,0.00018073]
[1721410673005,0.0489327,66612.0,66610.0,0.07717479]
[1721410673239,0.04592853,66611.0,66610.0,0.07717479]
[1721410674310,0.01440064,66611.0,66610.0,0.07717479]
[1721410674441,0.01440064,66613.0,66610.0,0.07717479]
[1721410674858,0.001,66611.0,66610.0,0.07717479]
[1721410675258,0.01644167,66611.0,66610.0,0.07717479]
[1721410675530,0.01544167,66611.0,66605.0,0.00018073]
[1721410675731,0.001,66611.0,66610.0,0.07717479]
[1721410676394,0.01543984,66611.0,66610.0,0.09138927]
[1721410677121,0.01443984,66611.0,66610.0,0.09138927]
[1721410677317,0.01676726,66615.0,66610.0,0.09138927]
[1721410677318,0.01443984,66614.0,66610.0,0.09138927]
[1721410677525,0.001,66611.0,66610.0,0.09138927]
[1721410677765,0.01543984,66611.0,66610.0,0.09138927]
[1721410677940,0.01643984,66611.0,66610.0,0.09138927]
[1721410678149,0.01543984,66611.0,66610.0,0.09138927]
[1721410678351,0.01548482,66611.0,66610.0,0.09138927]
[1721410678973,0.01448482,66611.0,66610.0,0.09138927]
[1721410679206,0.01448482,66613.0,66610.0,0.09138927]
[1721410679409,0.01448482,66612.0,66610.0,0.09138927]
[1721410679618,0.01448482,66611.0,66610.0,0.09138927]
[1721410679825,0.01448482,66613.0,66610.0,0.09138927]
[1721410680026,0.01448482,66612.0,66610.0,0.09138927]
[1721410680289,0.00684,66614.0,66610.0,0.09138927]
[1721410680290,0.01448482,66611.0,66610.0,0.09138927]
[1721410680541,0.01948482,66611.0,66610.0,0.09138927]
[1721410681046,0.02448482,66611.0,66610.0,0.09138927]
[1721410681278,0.0244779,66611.0,66610.0,0.09138927]
[1721410681746,0.0214779,66611.0,66610.0,0.09138927]
[1721410681969,0.0214779,66611.0,66610.0,0.09238927]
[1721410682904,0.0214779,66611.0,66610.0,0.15438927]
[1721410683138,0.0214779,66611.0,66610.0,0.31177311]
[1721410683376,0.0214525,66611.0,66610.0,0.58357733]
[1721410683621,0.0214525,66611.0,66610.0,0.58257733]
[1721410683888,0.0214525,66611.0,66610.0,0.88283233]
[1721410684128,0.012,66611.0,66610.0,0.62711199]
[1721410684365,0.012,66611.0,66610.0,0.92736699]
[1721410684609,0.007,66611.0,66610.0,0.94964205]
[1721410684847,0.008,66611.0,66610.0,0.76815301]
[1721410685084,0.008,66611.0,66610.0,0.89281475]
[1721410685311,0.007,66611.0,66610.0,0.88581475]
[1721410685516,0.00084,66614.0,66611.0,0.150124]
[1721410685723,0.00084,66614.0,66613.0,0.2359]
[1721410685956,0.00084,66614.0,66613.0,0.51494348]
[1721410686173,0.00084,66614.0,66613.0,0.52913305]
[1721410686588,0.01521906,66614.0,66613.0,0.67925305]